fUST/lending_fUST_20250602
["ID","MTS","AMOUNT","RATE_DAILY","PERIOD"]
[363762882,1748865043807,-160.0,0.0001786,2]
[363762884,1748865043817,-160.0,0.0001786,2]
[363762886,1748865043827,-423.56953423,0.00017861,2]
[363762888,1748865043836,-160.0,0.00017861,2]
[363762890,1748865043846,-842.5625,0.00017861,2]
[363762892,1748865043855,-314.91466509,0.00017861,2]
[363762894,1748865043865,-212.83419937,0.00017861,2]
[363762896,1748865043875,-160.0,0.00017861,2]
[363762898,1748865043884,-160.0,0.00017861,2]
[363762900,1748865043893,-229.39799938,0.00017861,2]
[363762901,1748865043902,-160.0,0.00017861,2]
[363762903,1748865043911,-12668.79298183,0.00017861,2]
[363762905,1748865043921,-500.0,0.00017869,2]
[363762907,1748865043930,-507.14539519,0.00017887,2]
[363762909,1748865043939,-151.0,0.000179,2]
[363762911,1748865043948,-5032.82828917,0.000179,2]
[363762913,1748865043958,-1800.0,0.00017937,2]
[363762914,1748865043967,-430.0,0.00017957,2]
[363762915,1748865043976,-430.0,0.00017957,2]
[363762916,1748865043986,-430.0,0.00017957,2]
[363762917,1748865043996,-905.15,0.00017957,2]
[363762918,1748865044005,-1698.06,0.00017957,2]
[363762920,1748865044015,-430.0,0.00017957,2]
[363762922,1748865044024,-430.0,0.00017957,2]
[363762924,1748865044034,-3628.97,0.00017957,2]
[363762926,1748865044043,-430.0,0.00017957,2]
[363762929,1748865044053,-2100.78,0.00017957,2]
[363762931,1748865044063,-1418.93,0.00017958,2]
[363762933,1748865044072,-1352.15,0.00017958,2]
[363762935,1748865044082,-511.9329165,0.00017958,2]
[363762937,1748865044092,-430.0,0.00017958,2]
[363762939,1748865044101,-556.03,0.00017958,2]
[363762941,1748865044111,-430.0,0.00017958,2]
[363762943,1748865044120,-524.74654054,0.00017958,2]
[363762945,1748865044130,-430.0,0.00017958,2]
[363762947,1748865044139,-693.65,0.00017958,2]
[363762949,1748865044149,-430.0,0.00017958,2]
[363762951,1748865044158,-430.0,0.00017958,2]
[363762953,1748865044168,-430.0,0.00017958,2]
[363762955,1748865044177,-430.0,0.00017958,2]
[363762957,1748865044187,-430.0,0.00017958,2]
[363762959,1748865044197,-430.0,0.00017958,2]
[363762961,1748865044206,-430.0,0.00017958,2]
[363762963,1748865044215,-430.0,0.00017958,2]
[363762965,1748865044225,-430.0,0.00017958,2]
[363762967,1748865044234,-221.07382944,0.00017958,2]
[363762969,1748865044244,-712.75,0.00017958,2]
[363762971,1748865044253,-430.0,0.00017958,2]
[363762973,1748865044263,-430.0,0.00017958,2]
[363762975,1748865044273,-430.0,0.00017958,2]
[363762977,1748865044282,-430.0,0.00017958,2]
[363762979,1748865044291,-430.0,0.00017958,2]
[363762981,1748865044301,-482.43958677,0.00017958,2]
[363762983,1748865044310,-430.0,0.00017959,2]
[363762985,1748865044320,-430.0,0.00017959,2]
[363762987,1748865044330,-430.0,0.00017959,2]
[363762989,1748865044340,-430.0,0.00017959,2]
[363762991,1748865044349,-430.0,0.00017959,2]
[363762993,1748865044359,-339.78811078,0.00017959,2]
[363762995,1748865044368,-430.0,0.00017959,2]
[363762997,1748865044377,-430.0,0.00017959,2]
[363762999,1748865044387,-430.0,0.00017959,2]
[363763001,1748865044397,-430.0,0.00017959,2]
[363763003,1748865044406,-430.0,0.00017959,2]
[363763005,1748865044416,-430.0,0.00017959,2]
[363763007,1748865044426,-430.0,0.00017959,2]
[363763009,1748865044436,-430.0,0.00017959,2]
[363763011,1748865044445,-430.0,0.00017959,2]
[363763013,1748865044455,-810.52,0.00017959,2]
[363763015,1748865044464,-430.0,0.00017959,2]
[363763017,1748865044473,-430.0,0.00017959,2]
[363763019,1748865044483,-430.0,0.00017959,2]
[363763021,1748865044492,-4672.12,0.00017959,2]
[363763023,1748865044502,-430.0,0.00017959,2]
[363763025,1748865044512,-1912.09,0.00017959,2]
[363763027,1748865044521,-430.0,0.00017959,2]
[363763029,1748865044531,-430.0,0.00017959,2]
[363763031,1748865044541,-806.8,0.00017959,2]
[363763033,1748865044550,-699.56,0.00017959,2]
[363763035,1748865044560,-430.0,0.00017959,2]
[363763037,1748865044570,-430.0,0.00017959,2]
[363763039,1748865044580,-718.96,0.00017959,2]
[363763041,1748865044590,-430.0,0.00017959,2]
[363763043,1748865044599,-430.0,0.00017959,2]
[363763045,1748865044609,-430.0,0.00017959,2]
[363763047,1748865044618,-430.0,0.00017959,2]
[363763049,1748865044628,-500.0,0.00017959,2]
[363763051,1748865044638,-430.0,0.00017959,2]
[363763053,1748865044648,-1876.04,0.00017959,2]
[363763055,1748865044658,-430.0,0.00017959,2]
[363763058,1748865044669,-430.0,0.00017959,2]
[363763060,1748865044681,-430.0,0.00017959,2]
[363763062,1748865044690,-430.0,0.00017959,2]
[363763064,1748865044700,-430.0,0.00017959,2]
[363763066,1748865044709,-460.75,0.00017959,2]
[363763068,1748865044721,-430.0,0.00017959,2]
[363763070,1748865044730,-853.91,0.00017959,2]
[363763072,1748865044741,-430.0,0.00017959,2]
[363763074,1748865044752,-151.0,0.00017959,2]
[363763076,1748865044762,-430.0,0.00017959,2]
[363763078,1748865044772,-430.0,0.00017959,2]
[363763080,1748865044782,-430.0,0.00017959,2]
[363763082,1748865044792,-430.0,0.00017959,2]
[363763084,1748865044802,-430.0,0.00017959,2]
[363763086,1748865044812,-790.03,0.00017959,2]
[363763088,1748865044821,-565.73,0.00017959,2]
[363763090,1748865044833,-809.586366,0.00017959,2]
[363763092,1748865044843,-809.586366,0.00017959,2]
[363763094,1748865044853,-430.0,0.00017959,2]
[363763096,1748865044863,-430.0,0.00017959,2]
[363763098,1748865044873,-431.21622326,0.0001796,2]
[363763109,1748865044971,-433.27,0.0001796,2]
[363763111,1748865044982,-444.76786021,0.0001796,2]
[363763113,1748865044991,-430.0,0.0001796,2]
[363763115,1748865045001,-430.0,0.0001796,2]
[363763117,1748865045011,-430.0,0.0001796,2]
[363763119,1748865045021,-430.0,0.00017961,2]
[363763121,1748865045030,-273.13548576,0.00017995,2]
[363763124,1748865045040,-151.0,0.00017995,2]
[363763126,1748865045049,-207.4,0.00017995,2]
[363763128,1748865045059,-151.47158686,0.00017995,2]
[363763130,1748865045068,-500.0,0.00017995,2]
[363763131,1748865045077,-1500.0,0.00017995,2]
[363763134,1748865045088,-1500.0,0.00017995,2]
[363763135,1748865045098,-500.0,0.00017995,2]
[363763137,1748865045108,-500.0,0.00017995,2]
[363763139,1748865045118,-1500.0,0.00017995,2]
[363763141,1748865045127,-1500.0,0.00017995,2]
[363763144,1748865045137,-500.0,0.00017995,2]
[363763146,1748865045147,-1500.0,0.00017995,2]
[363763148,1748865045156,-500.0,0.00017995,2]
[363763150,1748865045166,-500.0,0.00017995,2]
[363763152,1748865045176,-1500.0,0.00017995,2]
[363763154,1748865045186,-1500.0,0.00017995,2]
[363763156,1748865045195,-500.0,0.00017995,2]
[363763157,1748865045204,-1500.0,0.00017995,2]
[363763160,1748865045214,-500.0,0.00017995,2]
[363763161,1748865045223,-1500.0,0.00017995,2]
[363763164,1748865045233,-500.0,0.00017995,2]
[363763166,1748865045242,-5000.0,0.00017995,2]
[363763168,1748865045252,-1500.0,0.00017995,2]
[363763170,1748865045262,-500.0,0.00017995,2]
[363763172,1748865045271,-500.0,0.00017995,2]
[363763174,1748865045280,-1500.0,0.00017995,2]
[363763176,1748865045290,-500.0,0.00017995,2]
[363763178,1748865045300,-1500.0,0.00017995,2]
[363763180,1748865045309,-500.0,0.00017995,2]
[363763182,1748865045318,-1500.0,0.00017995,2]
[363763184,1748865045328,-500.0,0.00017995,2]
[363763186,1748865045338,-1500.0,0.00017995,2]
[363763188,1748865045348,-500.0,0.00017995,2]
[363763190,1748865045358,-1500.0,0.00017995,2]
[363763192,1748865045368,-202.91049612,0.00017995,2]
[363763194,1748865045377,-846.03463808,0.00018014,2]
[363763196,1748865045387,-336.13,0.00018061,2]
[363763198,1748865045397,-2443.929871,0.00018082,2]
[363763200,1748865045407,-5032.82828888,0.00018107,2]
[363763202,1748865045417,-420.0,0.00018123,2]
[363763204,1748865045427,-325.0,0.00018123,2]
[363763206,1748865045436,-420.0,0.00018124,2]
[363763208,1748865045446,-151.0,0.000182,2]
[363763210,1748865045455,-377.74646264,0.000182,2]
[363763212,1748865045465,-430.0,0.00018231,2]
[363763214,1748865045475,-430.0,0.00018231,2]
[363763216,1748865045486,-430.0,0.00018231,2]
[363763218,1748865045495,-905.15,0.00018231,2]
[363763220,1748865045505,-1698.06,0.00018231,2]
[363763222,1748865045515,-430.0,0.00018231,2]
[363763224,1748865045524,-430.0,0.00018231,2]
[363763226,1748865045534,-3628.97,0.00018231,2]
[363763228,1748865045543,-430.0,0.00018231,2]
[363763230,1748865045553,-2100.78,0.00018231,2]
[363763232,1748865045563,-1418.93,0.00018232,2]
[363763234,1748865045574,-1352.15,0.00018232,2]
[363763236,1748865045586,-430.0,0.00018232,2]
[363763238,1748865045596,-556.03,0.00018232,2]
[363763240,1748865045606,-430.0,0.00018232,2]
[363763242,1748865045615,-430.0,0.00018232,2]
[363763244,1748865045625,-693.65,0.00018232,2]
[363763246,1748865045635,-430.0,0.00018232,2]
[363763248,1748865045644,-430.0,0.00018232,2]
[363763250,1748865045655,-430.0,0.00018232,2]
[363763252,1748865045665,-430.0,0.00018232,2]
[363763254,1748865045679,-430.0,0.00018232,2]
[363763256,1748865045690,-430.0,0.00018232,2]
[363763258,1748865045700,-430.0,0.00018232,2]
[363763260,1748865045710,-430.0,0.00018232,2]
[363763262,1748865045720,-430.0,0.00018232,2]
[363763264,1748865045730,-712.75,0.00018232,2]
[363763266,1748865045739,-430.0,0.00018232,2]
[363763268,1748865045749,-430.0,0.00018232,2]
[363763270,1748865045759,-430.0,0.00018232,2]
[363763272,1748865045768,-430.0,0.00018233,2]
[363763274,1748865045779,-430.0,0.00018233,2]
[363763276,1748865045788,-430.0,0.00018233,2]
[363763278,1748865045798,-430.0,0.00018233,2]
[363763280,1748865045808,-430.0,0.00018233,2]
[363763282,1748865045818,-430.0,0.00018233,2]
[363763284,1748865045828,-430.0,0.00018233,2]
[363763286,1748865045838,-430.0,0.00018233,2]
[363763288,1748865045847,-430.0,0.00018233,2]
[363763290,1748865045857,-151.743375,0.00018233,2]
[363763292,1748865045867,-444.92835629,0.00018233,2]
[363763294,1748865045877,-430.0,0.00018233,2]
[363763296,1748865045887,-430.0,0.00018233,2]
[363763298,1748865045896,-151.0,0.00018233,2]
[363763300,1748865045907,-430.0,0.00018233,2]
[363763302,1748865045917,-810.52,0.00018233,2]
[363763304,1748865045927,-152.217294,0.00018233,2]
[363763306,1748865045936,-430.0,0.00018233,2]
[363763308,1748865045946,-430.0,0.00018233,2]
[363763310,1748865045956,-430.0,0.00018233,2]
[363763312,1748865045967,-4672.12,0.00018233,2]
[363763314,1748865045976,-1912.09,0.00018233,2]
[363763316,1748865045986,-430.0,0.00018233,2]
[363763318,1748865045996,-806.8,0.00018233,2]
[363763320,1748865046005,-699.56,0.00018233,2]
[363763322,1748865046015,-430.0,0.00018233,2]
[363763324,1748865046025,-430.0,0.00018233,2]
[363763326,1748865046035,-430.0,0.00018233,2]
[363763328,1748865046045,-718.96,0.00018233,2]
[363763330,1748865046055,-430.0,0.00018233,2]
[363763332,1748865046064,-430.0,0.00018233,2]
[363763334,1748865046074,-430.0,0.00018233,2]
[363763336,1748865046085,-500.0,0.00018233,2]
[363763338,1748865046095,-430.0,0.00018233,2]
[363763340,1748865046104,-1876.04,0.00018233,2]
[363763343,1748865046114,-430.0,0.00018233,2]
[363763345,1748865046124,-430.0,0.00018233,2]
[363763347,1748865046134,-430.0,0.00018233,2]
[363763349,1748865046143,-430.0,0.00018233,2]
[363763351,1748865046154,-430.0,0.00018233,2]
[363763353,1748865046164,-460.75,0.00018233,2]
[363763355,1748865046173,-853.91,0.00018233,2]
[363763357,1748865046183,-430.0,0.00018233,2]
[363763359,1748865046193,-430.0,0.00018233,2]
[363763361,1748865046202,-430.0,0.00018233,2]
[363763363,1748865046213,-500.86799031,0.00018233,2]
[363763365,1748865046223,-151.0,0.00018233,2]
[363763367,1748865046232,-430.0,0.00018233,2]
[363763369,1748865046241,-430.0,0.00018233,2]
[363763371,1748865046251,-790.03,0.00018233,2]
[363763373,1748865046261,-565.73,0.00018233,2]
[363763375,1748865046271,-430.0,0.00018233,2]
[363763377,1748865046280,-430.0,0.00018233,2]
[363763379,1748865046290,-433.27,0.00018234,2]
[363763381,1748865046299,-430.0,0.00018234,2]
[363763383,1748865046309,-430.0,0.00018234,2]
[363763385,1748865046319,-430.0,0.00018235,2]
[363763387,1748865046328,-1500.0,0.00018314,2]
[363763389,1748865046340,-5032.82828888,0.00018314,2]
[363763391,1748865046351,-1012.30549638,0.00018364,2]
[363763393,1748865046361,-151.0,0.000184,2]
[363763395,1748865046371,-905.15,0.00018505,2]
[363763397,1748865046382,-1698.06,0.00018505,2]
[363763399,1748865046391,-430.0,0.00018505,2]
[363763401,1748865046400,-430.0,0.00018505,2]
[363763403,1748865046410,-3628.97,0.00018505,2]
[363763405,1748865046420,-430.0,0.00018505,2]
[363763407,1748865046429,-2100.78,0.00018505,2]
[363763409,1748865046439,-1418.93,0.00018506,2]
[363763411,1748865046450,-1352.15,0.00018506,2]
[363763413,1748865046459,-430.0,0.00018506,2]
[363763416,1748865046470,-556.03,0.00018506,2]
[363763418,1748865046479,-430.0,0.00018506,2]
[363763419,1748865046490,-430.0,0.00018506,2]
[363763421,1748865046499,-693.65,0.00018506,2]
[363763423,1748865046510,-430.0,0.00018506,2]
[363763426,1748865046520,-430.0,0.00018506,2]
[363763428,1748865046530,-430.0,0.00018506,2]
[363763430,1748865046540,-430.0,0.00018506,2]
[363763432,1748865046549,-430.0,0.00018506,2]
[363763434,1748865046559,-430.0,0.00018506,2]
[363763436,1748865046569,-430.0,0.00018506,2]
[363763438,1748865046579,-430.0,0.00018506,2]
[363763440,1748865046590,-430.0,0.00018506,2]
[363763442,1748865046599,-712.75,0.00018506,2]
[363763444,1748865046609,-151.0,0.00018506,2]
[363763446,1748865046619,-430.0,0.00018506,2]
[363763449,1748865046629,-430.0,0.00018506,2]
[363763451,1748865046639,-430.0,0.00018506,2]
[363763453,1748865046649,-809.586366,0.00018506,2]
[363763455,1748865046659,-809.586366,0.00018506,2]
[363763456,1748865046669,-430.0,0.00018507,2]
[363763459,1748865046681,-430.0,0.00018507,2]
[363763460,1748865046692,-243.97937949,0.00018507,2]
[363763463,1748865046702,-251.486605,0.00018507,2]
[363763464,1748865046713,-151.0,0.00018507,2]
[363763466,1748865046723,-430.0,0.00018507,2]
[363763468,1748865046733,-430.0,0.00018507,2]
[363763470,1748865046742,-430.0,0.00018507,2]
[363763481,1748865046755,-430.0,0.00018507,2]
[363763483,1748865046849,-151.0,0.00018507,2]
[363763485,1748865046860,-324.40370591,0.00018507,2]
[363763487,1748865046870,-430.0,0.00018507,2]
[363763489,1748865046879,-430.0,0.00018507,2]
[363763491,1748865046889,-430.0,0.00018507,2]
[363763493,1748865046899,-810.52,0.00018507,2]
[363763495,1748865046909,-430.0,0.00018507,2]
[363763497,1748865046918,-430.0,0.00018507,2]
[363763499,1748865046927,-430.0,0.00018507,2]
[363763501,1748865046937,-4672.12,0.00018507,2]
[363763503,1748865046946,-1912.09,0.00018507,2]
[363763505,1748865046956,-430.0,0.00018507,2]
[363763507,1748865046966,-699.56,0.00018507,2]
[363763509,1748865046975,-806.8,0.00018507,2]
[363763511,1748865046984,-430.0,0.00018507,2]
[363763513,1748865046994,-443.0,0.00018507,2]
[363763515,1748865047004,-430.0,0.00018507,2]
[363763517,1748865047014,-718.96,0.00018507,2]
[363763519,1748865047024,-430.0,0.00018507,2]
[363763521,1748865047034,-430.0,0.00018507,2]
[363763523,1748865047044,-508.47269799,0.00018507,2]
[363763525,1748865047053,-430.0,0.00018507,2]
[363763527,1748865047063,-1876.04,0.00018507,2]
[363763529,1748865047072,-430.0,0.00018507,2]
[363763531,1748865047082,-430.0,0.00018507,2]
[363763533,1748865047092,-430.0,0.00018507,2]
[363763535,1748865047101,-430.0,0.00018507,2]
[363763537,1748865047111,-460.75,0.00018507,2]
[363763539,1748865047120,-853.91,0.00018507,2]
[363763541,1748865047130,-430.0,0.00018507,2]
[363763543,1748865047140,-493.76,0.00018507,2]
[363763545,1748865047150,-430.0,0.00018507,2]
[363763547,1748865047160,-430.0,0.00018507,2]
[363763550,1748865047170,-430.0,0.00018507,2]
[363763551,1748865047180,-790.03,0.00018507,2]
[363763553,1748865047190,-565.73,0.00018507,2]
[363763555,1748865047199,-430.0,0.00018507,2]
[363763557,1748865047209,-430.0,0.00018507,2]
[363763559,1748865047218,-433.27,0.00018508,2]
[363763561,1748865047227,-430.0,0.00018509,2]
[363763563,1748865047237,-5032.82828888,0.00018521,2]
[363763565,1748865047246,-5000.0,0.00018543,2]
[363763567,1748865047255,-151.0,0.000186,2]
[363763569,1748865047265,-846.03463808,0.00018639,2]
[363763571,1748865047274,-151.0,0.000187,2]
[363763573,1748865047284,-5032.82828888,0.00018728,2]
[363763575,1748865047294,-151.0,0.00018728,2]
[363763577,1748865047304,-151.0,0.00018728,2]
[363763579,1748865047314,-151.0,0.00018728,2]
[363763581,1748865047324,-905.15,0.00018779,2]
[363763583,1748865047335,-1698.06,0.00018779,2]
[363763585,1748865047345,-430.0,0.00018779,2]
[363763587,1748865047354,-3628.97,0.00018779,2]
[363763589,1748865047364,-430.0,0.00018779,2]
[363763591,1748865047374,-2100.78,0.00018779,2]
[363763593,1748865047384,-1418.93,0.0001878,2]
[363763595,1748865047394,-1352.15,0.0001878,2]
[363763597,1748865047403,-556.03,0.0001878,2]
[363763599,1748865047413,-430.0,0.0001878,2]
[363763601,1748865047422,-426.16496433,0.0001878,2]
[363763603,1748865047432,-693.65,0.0001878,2]
[363763605,1748865047442,-430.0,0.0001878,2]
[363763607,1748865047452,-430.0,0.0001878,2]
[363763609,1748865047462,-350.91825945,0.0001878,2]
[363763611,1748865047471,-712.75,0.0001878,2]
[363763613,1748865047480,-430.0,0.0001878,2]
[363763615,1748865047489,-430.0,0.0001878,2]
[363763617,1748865047500,-430.0,0.0001878,2]
[363763618,1748865047509,-500.0,0.0001878,2]
[363763620,1748865047520,-742.28054002,0.0001878,2]
[363763622,1748865047529,-306.29217429,0.0001878,2]
[363763624,1748865047539,-742.28054002,0.0001878,2]
[363763626,1748865047549,-742.28054002,0.0001878,2]
[363763628,1748865047558,-500.0,0.0001878,2]
[363763630,1748865047568,-742.28054002,0.0001878,2]
[363763632,1748865047577,-430.0,0.00018781,2]
[363763634,1748865047588,-430.0,0.00018781,2]
[363763636,1748865047598,-430.0,0.00018781,2]
[363763638,1748865047607,-810.52,0.00018781,2]
[363763640,1748865047617,-4672.12,0.00018781,2]
[363763642,1748865047626,-1912.09,0.00018781,2]
[363763644,1748865047635,-699.56,0.00018781,2]
[363763646,1748865047646,-806.8,0.00018781,2]
[363763648,1748865047655,-718.96,0.00018781,2]
[363763650,1748865047665,-430.0,0.00018781,2]
[363763652,1748865047680,-1876.04,0.00018781,2]
[363763654,1748865047689,-430.0,0.00018781,2]
[363763656,1748865047699,-430.0,0.00018781,2]
[363763658,1748865047711,-430.0,0.00018781,2]
[363763660,1748865047720,-460.75,0.00018781,2]
[363763662,1748865047730,-853.91,0.00018781,2]
[363763664,1748865047739,-430.0,0.00018781,2]
[363763666,1748865047751,-430.0,0.00018781,2]
[363763668,1748865047760,-790.03,0.00018781,2]
[363763670,1748865047770,-565.73,0.00018781,2]
[363763672,1748865047780,-430.0,0.00018781,2]
[363763674,1748865047791,-433.27,0.00018782,2]
[363763676,1748865047800,-430.0,0.00018783,2]
[363763678,1748865047810,-460.48033527,0.00018862,2]
[363763684,1748865047988,-1539.51966473,0.00018862,2]
[363763685,1748865047998,-151.0,0.000189,2]
[363763686,1748865048008,-792.48785508,0.000189,2]
[363763689,1748865048043,-1253.06269737,0.000189,2]
[363763691,1748865048055,-357.90851362,0.000189,2]
[363763693,1748865048065,-672.26,0.00018921,2]
[363763695,1748865048076,-237.19288922,0.00018934,2]
[363763777,1748865048882,5000.0,0.00016,2]
[363763798,1748865049073,-500.0,0.00016587,2]
[363763800,1748865049084,-167.10342332,0.00016587,2]
[363763802,1748865049095,-500.0,0.00016587,2]
[363763804,1748865049104,-500.0,0.00016587,2]
[363763806,1748865049114,-306.49169577,0.00016587,2]
[363763808,1748865049124,-206.18620081,0.00016587,2]
[363763810,1748865049133,-405.38491195,0.00016587,2]
[363763812,1748865049146,-94.61508805,0.00016587,2]
[363763814,1748865049155,-430.0,0.00016587,2]
[363763816,1748865049165,-93.78959809,0.00016861,2]
[363763819,1748865049182,-336.21040191,0.00016861,2]
[363763821,1748865049191,-430.0,0.00016863,2]
[363763823,1748865049201,-430.0,0.00017135,2]
[363763825,1748865049210,-430.0,0.00017137,2]
[363763827,1748865049220,-430.0,0.00017409,2]
[363763829,1748865049229,-430.0,0.00017411,2]
[363763831,1748865049239,-430.0,0.00017683,2]
[363763833,1748865049249,-430.0,0.00017685,2]
[363763835,1748865049259,-430.0,0.00017957,2]
[363763837,1748865049269,-430.0,0.00017959,2]
[363763839,1748865049279,-430.0,0.00018233,2]
[363763841,1748865049289,-430.0,0.00018507,2]
[363763843,1748865049299,-742.28054002,0.0001878,2]
[363763845,1748865049309,-742.28054002,0.0001878,2]
[363763847,1748865049319,-742.28054002,0.0001878,2]
[363763849,1748865049329,-500.0,0.0001878,2]
[363763851,1748865049341,-742.28054002,0.0001878,2]
[363763854,1748865049351,-742.28054002,0.0001878,2]
[363763856,1748865049362,-742.28054002,0.0001878,2]
[363763858,1748865049372,-742.28054002,0.0001878,2]
[363763860,1748865049383,-500.0,0.0001878,2]
[363763862,1748865049392,-500.0,0.0001878,2]
[363763864,1748865049402,-742.28054002,0.0001878,2]
[363763866,1748865049412,-742.28054002,0.0001878,2]
[363763868,1748865049422,-742.28054002,0.0001878,2]
[363763870,1748865049431,-742.28054002,0.0001878,2]
[363763872,1748865049442,-742.28054002,0.0001878,2]
[363763874,1748865049452,-742.28054002,0.0001878,2]
[363763876,1748865049463,-742.28054002,0.0001878,2]
[363763878,1748865049472,-742.28054002,0.0001878,2]
[363763880,1748865049482,-430.0,0.00018781,2]
[363763882,1748865049492,-4795.63539966,0.00018934,2]
[363763884,1748865049502,-151.0,0.00019,2]
[363763886,1748865049512,-151.0,0.00019,2]
[363763888,1748865049521,-1800.0,0.00019033,2]
[363763890,1748865049531,-905.15,0.00019053,2]
[363763892,1748865049541,-1698.06,0.00019053,2]
[363763894,1748865049551,-430.0,0.00019053,2]
[363763896,1748865049560,-3628.97,0.00019053,2]
[363763898,1748865049570,-430.0,0.00019053,2]
[363763900,1748865049579,-2100.78,0.00019053,2]
[363763902,1748865049590,-1352.15,0.00019054,2]
[363763904,1748865049601,-556.03,0.00019054,2]
[363763906,1748865049611,-430.0,0.00019054,2]
[363763908,1748865049621,-693.65,0.00019054,2]
[363763910,1748865049631,-430.0,0.00019054,2]
[363763912,1748865049641,-430.0,0.00019054,2]
[363763914,1748865049650,-712.75,0.00019054,2]
[363763916,1748865049661,-430.0,0.00019054,2]
[363763918,1748865049671,-430.0,0.00019054,2]
[363763920,1748865049684,-968.289601,0.00019055,2]
[363763923,1748865049693,-968.289601,0.00019055,2]
[363763925,1748865049703,-151.0,0.00019055,2]
[363763927,1748865049712,-430.0,0.00019055,2]
[363763929,1748865049723,-810.52,0.00019055,2]
[363763931,1748865049733,-286.852384,0.00019055,2]
[363763933,1748865049742,-286.852384,0.00019055,2]
[363763935,1748865049752,-4672.12,0.00019055,2]
[363763937,1748865049763,-1912.09,0.00019055,2]
[363763939,1748865049774,-699.56,0.00019055,2]
[363763941,1748865049784,-806.8,0.00019055,2]
[363763943,1748865049794,-718.96,0.00019055,2]
[363763945,1748865049803,-1876.04,0.00019055,2]
[363763947,1748865049812,-532.92438535,0.00019055,2]
[363763949,1748865049822,-430.0,0.00019055,2]
[363763951,1748865049831,-430.0,0.00019055,2]
[363763953,1748865049841,-460.75,0.00019055,2]
[363763955,1748865049850,-853.91,0.00019055,2]
[363763966,1748865049941,-528.11,0.00019055,2]
[363763968,1748865049953,-151.0,0.00019055,2]
[363763970,1748865049962,-790.03,0.00019055,2]
[363763972,1748865049972,-565.73,0.00019055,2]
[363763974,1748865049982,-430.0,0.00019055,2]
[363763976,1748865049992,-430.0,0.00019055,2]
[363763978,1748865050001,-433.27,0.00019056,2]
[363763980,1748865050010,-248.73150844,0.00019057,2]
[363763981,1748865050020,-5000.0,0.00019091,2]
[363763983,1748865050029,-19201.11118447,0.000191,2]
[363763985,1748865050038,-8318.76806029,0.00019136,2]
[363763987,1748865050048,-151.0,0.00019141,2]
[363763989,1748865050057,-809.586366,0.00019141,2]
[363763991,1748865050067,-809.586366,0.00019141,2]
[363763993,1748865050076,-5032.82828888,0.00019141,2]
[363763995,1748865050086,-460.61382357,0.00019178,2]
[363763997,1748865050095,-500.0,0.00019178,2]
[363763999,1748865050105,-500.0,0.00019178,2]
[363764001,1748865050114,-467.72293613,0.00019178,2]
[363764003,1748865050124,-500.0,0.00019178,2]
[363764005,1748865050134,-500.0,0.00019178,2]
[363764007,1748865050143,-500.0,0.00019178,2]
[363764009,1748865050152,-500.0,0.00019178,2]